[Event "Early-Titled-Tuesday-Blitz-April-16-2024"]
[Site "Chess.com"]
[Date "2024.04.16"]
[Round "10"]
[White "Caroexpert"]
[Black "chess_blitz00"]
[Result "1-0"]
[WhiteElo "2668"]
[BlackElo "2508"]
[TimeControl "180+1"]
[EndTime "10:00:02 PDT"]
[Termination "Caroexpert won by checkmate"]

1. d4 {[%clk 0:03:00.9]} 1... d6 {[%clk 0:03:00.2]} 2. Nf3 {[%clk 0:02:58.6]}
2... Bf5 {[%clk 0:02:59.5]} 3. Nbd2 {[%clk 0:02:50.1]} 3... Nf6 {[%clk 0:02:59]}
4. c4 {[%clk 0:02:49.5]} 4... c5 {[%clk 0:02:57.2]} 5. d5 {[%clk 0:02:45.1]}
5... h6 {[%clk 0:02:56.3]} 6. g3 {[%clk 0:02:44.8]} 6... g5 {[%clk 0:02:49.8]}
7. Bg2 {[%clk 0:02:44.4]} 7... Bg7 {[%clk 0:02:49.9]} 8. O-O {[%clk 0:02:44.8]}
8... Bg6 {[%clk 0:02:43.3]} 9. Re1 {[%clk 0:02:44.9]} 9... O-O {[%clk
0:02:42.6]} 10. e4 {[%clk 0:02:44.5]} 10... Nbd7 {[%clk 0:02:43.3]} 11. h3
{[%clk 0:02:43.6]} 11... Ne5 {[%clk 0:02:39.6]} 12. Qe2 {[%clk 0:02:39.3]} 12...
Nfd7 {[%clk 0:02:37.8]} 13. Nh2 {[%clk 0:02:33.5]} 13... f5 {[%clk 0:01:38.7]}
14. f4 {[%clk 0:02:22.1]} 14... Nf7 {[%clk 0:01:38.8]} 15. exf5 {[%clk
0:02:08.8]} 15... Bxf5 {[%clk 0:01:38.4]} 16. g4 {[%clk 0:02:05.4]} 16... Bh7
{[%clk 0:01:33.7]} 17. Qxe7 {[%clk 0:01:49.9]} 17... gxf4 {[%clk 0:01:15.7]} 18.
Qxd8 {[%clk 0:01:47.7]} 18... Raxd8 {[%clk 0:01:15.1]} 19. Ne4 {[%clk 0:01:37]}
19... Nde5 {[%clk 0:01:10]} 20. Bxf4 {[%clk 0:01:27]} 20... Nd3 {[%clk
0:00:46.9]} 21. Rf1 {[%clk 0:01:22.2]} 21... Bxb2 {[%clk 0:00:45.2]} 22. Rab1
{[%clk 0:01:18.9]} 22... Bd4+ {[%clk 0:00:45.4]} 23. Kh1 {[%clk 0:01:18.8]}
23... Bxe4 {[%clk 0:00:44.8]} 24. Bxe4 {[%clk 0:01:16.4]} 24... Nf2+ {[%clk
0:00:44.8]} 25. Rxf2 {[%clk 0:01:15.7]} 25... Bxf2 {[%clk 0:00:45.7]} 26. Rxb7
{[%clk 0:01:14.5]} 26... Bd4 {[%clk 0:00:35.6]} 27. Bf5 {[%clk 0:01:14]} 27...
Be5 {[%clk 0:00:33.9]} 28. Be3 {[%clk 0:01:04.9]} 28... Rb8 {[%clk 0:00:30.8]}
29. Rxa7 {[%clk 0:01:00]} 29... Ra8 {[%clk 0:00:30.7]} 30. Rd7 {[%clk
0:00:53.7]} 30... Rfd8 {[%clk 0:00:18.2]} 31. Rc7 {[%clk 0:00:50.2]} 31... Ng5
{[%clk 0:00:08.9]} 32. Bxg5 {[%clk 0:00:15.3]} 32... hxg5 {[%clk 0:00:09.8]} 33.
Nf3 {[%clk 0:00:15.4]} 33... Bf4 {[%clk 0:00:09]} 34. h4 {[%clk 0:00:15.2]}
34... Rxa2 {[%clk 0:00:07.4]} 35. Be6+ {[%clk 0:00:09.3]} 35... Kh8 {[%clk
0:00:07]} 36. hxg5 {[%clk 0:00:03.3]} 36... Rb8 {[%clk 0:00:06.5]} 37. g6 {[%clk
0:00:03.4]} 37... Rb1+ {[%clk 0:00:06.3]} 38. Ng1 {[%clk 0:00:02.9]} 38... Be5
{[%clk 0:00:02.8]} 39. Rh7# {[%clk 0:00:01.3]} 1-0

[Event "Early-Titled-Tuesday-Blitz-April-16-2024"]
[Site "Chess.com"]
[Date "2024.04.16"]
[Round "10"]
[White "Predator0608"]
[Black "ValentunHulka"]
[Result "1-0"]
[WhiteElo "2589"]
[BlackElo "2776"]
[TimeControl "180+1"]
[EndTime "10:00:09 PDT"]
[Termination "Predator0608 won by resignation"]

1. e4 {[%clk 0:03:00.9]} 1... c5 {[%clk 0:03:00.6]} 2. Nf3 {[%clk 0:03:00.5]}
2... Nc6 {[%clk 0:03:01.2]} 3. d4 {[%clk 0:03:01]} 3... cxd4 {[%clk 0:03:01.1]}
4. Nxd4 {[%clk 0:03:01.9]} 4... Nf6 {[%clk 0:03:01.8]} 5. Nc3 {[%clk 0:03:02.4]}
5... e5 {[%clk 0:03:02.5]} 6. Ndb5 {[%clk 0:03:01.8]} 6... d6 {[%clk 0:03:03.2]}
7. Bg5 {[%clk 0:03:02.1]} 7... a6 {[%clk 0:03:03.5]} 8. Na3 {[%clk 0:03:02.3]}
8... b5 {[%clk 0:03:04.2]} 9. Nd5 {[%clk 0:03:02.3]} 9... Be7 {[%clk 0:03:04.7]}
10. Bxf6 {[%clk 0:03:02.9]} 10... Bxf6 {[%clk 0:03:05.6]} 11. c4 {[%clk
0:03:03.5]} 11... b4 {[%clk 0:03:05.4]} 12. Nc2 {[%clk 0:03:04.2]} 12... O-O
{[%clk 0:03:06.3]} 13. Be2 {[%clk 0:03:03.9]} 13... a5 {[%clk 0:03:05.2]} 14.
O-O {[%clk 0:03:04.1]} 14... Bg5 {[%clk 0:03:05.1]} 15. Qd3 {[%clk 0:03:02.5]}
15... Be6 {[%clk 0:03:04.7]} 16. a3 {[%clk 0:03:02.2]} 16... Nb8 {[%clk
0:03:05.3]} 17. axb4 {[%clk 0:03:01.8]} 17... Nd7 {[%clk 0:03:02.9]} 18. bxa5
{[%clk 0:02:56.8]} 18... Nc5 {[%clk 0:03:00.6]} 19. Qa3 {[%clk 0:02:38.2]} 19...
Nxe4 {[%clk 0:02:58.9]} 20. Rfd1 {[%clk 0:02:36.9]} 20... Nd2 {[%clk 0:02:44.7]}
21. Nce3 {[%clk 0:02:03]} 21... Ne4 {[%clk 0:02:34.4]} 22. Bf3 {[%clk
0:01:53.4]} 22... Nc5 {[%clk 0:02:17]} 23. b4 {[%clk 0:01:52.9]} 23... Nd7
{[%clk 0:02:14.6]} 24. b5 {[%clk 0:01:43.7]} 24... Nc5 {[%clk 0:02:13.8]} 25.
Nc3 {[%clk 0:01:25.5]} 25... Ra7 {[%clk 0:01:59.5]} 26. Ncd5 {[%clk 0:01:16.3]}
26... e4 {[%clk 0:01:56.3]} 27. Be2 {[%clk 0:01:14.6]} 27... f5 {[%clk
0:01:56.6]} 28. b6 {[%clk 0:01:09.4]} 28... Raf7 {[%clk 0:01:52.1]} 29. Nc2
{[%clk 0:00:49.6]} 29... f4 {[%clk 0:01:49.4]} 30. Nd4 {[%clk 0:00:48.6]} 30...
f3 {[%clk 0:01:44.2]} 31. gxf3 {[%clk 0:00:37.9]} 31... Bh4 {[%clk 0:01:41.9]}
32. a6 {[%clk 0:00:27.1]} 32... Bxd5 {[%clk 0:01:26]} 33. cxd5 {[%clk
0:00:26.7]} 33... Bxf2+ {[%clk 0:00:58.5]} 34. Kxf2 {[%clk 0:00:20.6]} 34...
Qh4+ {[%clk 0:00:58.9]} 35. Kg1 {[%clk 0:00:19.1]} 35... exf3 {[%clk 0:00:54.4]}
36. Bxf3 {[%clk 0:00:19.5]} 36... Rxf3 {[%clk 0:00:28.2]} 37. Nxf3 {[%clk
0:00:20.4]} 37... Qg4+ {[%clk 0:00:29.1]} 38. Kh1 {[%clk 0:00:19.5]} 38... Rxf3
{[%clk 0:00:29.1]} 39. b7 {[%clk 0:00:16.6]} 39... Qe4 {[%clk 0:00:22.8]} 40.
b8=Q+ {[%clk 0:00:07.9]} 40... Rf8+ {[%clk 0:00:23]} 41. Kg1 {[%clk 0:00:08.8]}
41... Rxb8 {[%clk 0:00:18.9]} 42. Qg3 {[%clk 0:00:08.5]} 42... Ra8 {[%clk
0:00:12.4]} 43. a7 {[%clk 0:00:07.4]} 43... Qe7 {[%clk 0:00:12.4]} 44. Re1
{[%clk 0:00:07]} 44... Qb7 {[%clk 0:00:11.6]} 45. Qxd6 {[%clk 0:00:06.2]} 45...
Nd3 {[%clk 0:00:10.2]} 46. Qe6+ {[%clk 0:00:06.5]} 46... Kh8 {[%clk 0:00:06.1]}
47. Qe8+ {[%clk 0:00:06.4]} 1-0

[Event "Early-Titled-Tuesday-Blitz-April-16-2024"]
[Site "Chess.com"]
[Date "2024.04.16"]
[Round "10"]
[White "michaelskie11"]
[Black "alpope"]
[Result "1-0"]
[WhiteElo "2402"]
[BlackElo "2509"]
[TimeControl "180+1"]
[EndTime "10:00:09 PDT"]
[Termination "michaelskie11 won by resignation"]

1. d4 {[%clk 0:02:59.5]} 1... g6 {[%clk 0:02:56.3]} 2. e4 {[%clk 0:02:58.5]}
2... Bg7 {[%clk 0:02:56.7]} 3. Nc3 {[%clk 0:02:58]} 3... d6 {[%clk 0:02:57.1]}
4. h3 {[%clk 0:02:56.9]} 4... a6 {[%clk 0:02:57]} 5. a4 {[%clk 0:02:56]} 5... b6
{[%clk 0:02:56.6]} 6. Nf3 {[%clk 0:02:55.5]} 6... Bb7 {[%clk 0:02:56.7]} 7. Bd3
{[%clk 0:02:46.6]} 7... Nd7 {[%clk 0:02:56.1]} 8. O-O {[%clk 0:02:46.4]} 8... e5
{[%clk 0:02:53.4]} 9. Be3 {[%clk 0:02:42.5]} 9... Ngf6 {[%clk 0:02:51.2]} 10.
Qd2 {[%clk 0:02:37.8]} 10... O-O {[%clk 0:02:50.8]} 11. Rad1 {[%clk 0:02:32.4]}
11... Qe7 {[%clk 0:02:48.4]} 12. dxe5 {[%clk 0:02:27.6]} 12... dxe5 {[%clk
0:02:40.7]} 13. Bg5 {[%clk 0:02:19.5]} 13... Rfd8 {[%clk 0:02:33.7]} 14. Qe3
{[%clk 0:02:10.1]} 14... Nc5 {[%clk 0:02:18.3]} 15. Bc4 {[%clk 0:02:05.2]} 15...
Qe8 {[%clk 0:02:00.4]} 16. Bxf6 {[%clk 0:01:48.4]} 16... Bxf6 {[%clk 0:01:57.9]}
17. Nd5 {[%clk 0:01:49.3]} 17... Bg7 {[%clk 0:01:57.3]} 18. Nxc7 {[%clk
0:01:48.7]} 18... Qe7 {[%clk 0:01:45.7]} 19. Nxa8 {[%clk 0:01:47.7]} 19... Rxa8
{[%clk 0:01:46.1]} 20. Bd5 {[%clk 0:01:45.6]} 20... Nxa4 {[%clk 0:01:43.6]} 21.
Qb3 {[%clk 0:01:39.7]} 21... b5 {[%clk 0:01:43.7]} 22. Bxb7 {[%clk 0:01:35.5]}
22... Qxb7 {[%clk 0:01:44.6]} 23. Rd5 {[%clk 0:01:34.4]} 23... Nb6 {[%clk
0:01:39.7]} 24. Rd6 {[%clk 0:01:30.9]} 24... Nc4 {[%clk 0:01:38.2]} 25. Rd5
{[%clk 0:01:31]} 25... Nb6 {[%clk 0:01:38.1]} 26. Rdd1 {[%clk 0:01:28.1]} 26...
Qxe4 {[%clk 0:01:36.4]} 27. Qxf7+ {[%clk 0:01:25.3]} 27... Kxf7 {[%clk
0:01:33.2]} 28. Ng5+ {[%clk 0:01:25.4]} 28... Kg8 {[%clk 0:01:32.9]} 29. Nxe4
{[%clk 0:01:26.3]} 29... a5 {[%clk 0:01:25]} 30. Rd6 {[%clk 0:00:53.8]} 30...
Nc4 {[%clk 0:01:24.8]} 31. Rd7 {[%clk 0:00:53.7]} 31... a4 {[%clk 0:01:13.7]}
32. b3 {[%clk 0:00:52.5]} 32... Na3 {[%clk 0:01:08.6]} 33. bxa4 {[%clk
0:00:51.9]} 33... bxa4 {[%clk 0:01:08.8]} 34. c3 {[%clk 0:00:44.7]} 34... Nc4
{[%clk 0:00:58.7]} 35. Rb1 {[%clk 0:00:39.6]} 35... a3 {[%clk 0:00:55.1]} 36.
Rbb7 {[%clk 0:00:39.4]} 36... Bh8 {[%clk 0:00:44.6]} 37. Ra7 {[%clk 0:00:31.5]}
37... Rb8 {[%clk 0:00:42.8]} 38. Rxh7 {[%clk 0:00:29.4]} 38... a2 {[%clk
0:00:38.8]} 39. Rxh8+ {[%clk 0:00:23.6]} 39... Kxh8 {[%clk 0:00:38.2]} 40. Rxa2
{[%clk 0:00:22.5]} 40... Kg7 {[%clk 0:00:36.5]} 41. Ra7+ {[%clk 0:00:22.1]}
41... Kh6 {[%clk 0:00:36.9]} 42. g4 {[%clk 0:00:21.9]} 42... g5 {[%clk 0:00:32]}
43. Ra6+ {[%clk 0:00:21]} 43... Kg7 {[%clk 0:00:31.8]} 44. Nxg5 {[%clk
0:00:21.5]} 44... Rb2 {[%clk 0:00:30.1]} 45. Ne4 {[%clk 0:00:20.6]} 45... Re2
{[%clk 0:00:30.4]} 46. f3 {[%clk 0:00:19.5]} 46... Ne3 {[%clk 0:00:25.9]} 47. h4
{[%clk 0:00:19.6]} 47... Nd5 {[%clk 0:00:23.5]} 48. h5 {[%clk 0:00:19.5]} 48...
Nf4 {[%clk 0:00:23.4]} 49. h6+ {[%clk 0:00:19.6]} 49... Kh8 {[%clk 0:00:23.9]}
50. Ra8+ {[%clk 0:00:17.7]} 50... Kh7 {[%clk 0:00:23.7]} 51. Ra6 {[%clk
0:00:16.8]} 51... Rb2 {[%clk 0:00:18.2]} 52. Ng5+ {[%clk 0:00:16.9]} 52... Kg8
{[%clk 0:00:17.4]} 53. Ra8+ {[%clk 0:00:16.6]} 1-0

[Event "Early-Titled-Tuesday-Blitz-April-16-2024"]
[Site "Chess.com"]
[Date "2024.04.16"]
[Round "10"]
[White "Josgar05"]
[Black "dontcatchmeifyoucant"]
[Result "0-1"]
[WhiteElo "2434"]
[BlackElo "2262"]
[TimeControl "180+1"]
[EndTime "10:00:09 PDT"]
[Termination "dontcatchmeifyoucant won on time"]

1. Nf3 {[%clk 0:03:00.9]} 1... Nf6 {[%clk 0:02:54.6]} 2. b3 {[%clk 0:03:01]}
2... e6 {[%clk 0:02:52.6]} 3. Bb2 {[%clk 0:03:00.6]} 3... d5 {[%clk 0:02:53.3]}
4. e3 {[%clk 0:02:59.9]} 4... c5 {[%clk 0:02:52.6]} 5. d4 {[%clk 0:03:00]} 5...
Nc6 {[%clk 0:02:52.9]} 6. Be2 {[%clk 0:02:59.7]} 6... Be7 {[%clk 0:02:52.1]} 7.
O-O {[%clk 0:02:59.8]} 7... O-O {[%clk 0:02:52.3]} 8. c4 {[%clk 0:02:58.7]} 8...
cxd4 {[%clk 0:02:50.2]} 9. exd4 {[%clk 0:02:59.1]} 9... b6 {[%clk 0:02:49.2]}
10. Nc3 {[%clk 0:02:57.3]} 10... Bb7 {[%clk 0:02:49.6]} 11. Rc1 {[%clk
0:02:54.3]} 11... Rc8 {[%clk 0:02:48.3]} 12. Re1 {[%clk 0:02:54.2]} 12... Re8
{[%clk 0:02:27.6]} 13. Bf1 {[%clk 0:02:49.9]} 13... h6 {[%clk 0:02:27.6]} 14.
Ne5 {[%clk 0:02:40.3]} 14... dxc4 {[%clk 0:02:08.5]} 15. Nxc6 {[%clk 0:02:38]}
15... Bxc6 {[%clk 0:02:05.1]} 16. bxc4 {[%clk 0:02:38.1]} 16... Ba8 {[%clk
0:01:58.7]} 17. Qd3 {[%clk 0:02:33.6]} 17... Qd7 {[%clk 0:01:57]} 18. Red1
{[%clk 0:02:21.5]} 18... Red8 {[%clk 0:01:55.3]} 19. Qe3 {[%clk 0:02:16.2]}
19... Qb7 {[%clk 0:01:50.3]} 20. Qg3 {[%clk 0:02:03.8]} 20... Bf8 {[%clk
0:01:45.8]} 21. Rd2 {[%clk 0:01:46.5]} 21... Rd7 {[%clk 0:01:33.9]} 22. Re1
{[%clk 0:01:43.5]} 22... Rcd8 {[%clk 0:01:33.1]} 23. Qe3 {[%clk 0:01:33.9]}
23... Qb8 {[%clk 0:01:19.3]} 24. Red1 {[%clk 0:01:29.7]} 24... Bb4 {[%clk
0:01:10.1]} 25. f3 {[%clk 0:01:01]} 25... Bd6 {[%clk 0:01:07.3]} 26. g3 {[%clk
0:00:55]} 26... e5 {[%clk 0:00:46.9]} 27. Nb5 {[%clk 0:00:46.4]} 27... exd4
{[%clk 0:00:45.9]} 28. Bxd4 {[%clk 0:00:47.3]} 28... Bb4 {[%clk 0:00:35.1]} 29.
Rd3 {[%clk 0:00:41.9]} 29... a6 {[%clk 0:00:29.7]} 30. Nc3 {[%clk 0:00:26.3]}
30... Rxd4 {[%clk 0:00:22.2]} 31. Rxd4 {[%clk 0:00:24.9]} 31... Rxd4 {[%clk
0:00:21.6]} 32. Rxd4 {[%clk 0:00:25.5]} 32... Bc5 {[%clk 0:00:22.3]} 33. Na4
{[%clk 0:00:25.9]} 33... Bxd4 {[%clk 0:00:20.1]} 34. Qxd4 {[%clk 0:00:26.8]}
34... Bxf3 {[%clk 0:00:20.4]} 35. Qxb6 {[%clk 0:00:27.4]} 35... Qc8 {[%clk
0:00:19.5]} 36. Qf2 {[%clk 0:00:20]} 36... Bc6 {[%clk 0:00:18.9]} 37. Nb6 {[%clk
0:00:20.1]} 37... Qb7 {[%clk 0:00:17.8]} 38. c5 {[%clk 0:00:20.5]} 38... Ne4
{[%clk 0:00:16.4]} 39. Qd4 {[%clk 0:00:20.3]} 39... Qe7 {[%clk 0:00:15.6]} 40.
Bd3 {[%clk 0:00:20.1]} 40... Ng5 {[%clk 0:00:14.3]} 41. Kf1 {[%clk 0:00:14.3]}
41... Qe6 {[%clk 0:00:12.2]} 42. Qd8+ {[%clk 0:00:11.3]} 42... Be8 {[%clk
0:00:12.9]} 43. Qd5 {[%clk 0:00:08.7]} 43... Qf6+ {[%clk 0:00:11.8]} 44. Kg1
{[%clk 0:00:06.2]} 44... Bc6 {[%clk 0:00:09.9]} 45. Qf5 {[%clk 0:00:04.4]} 45...
Qd4+ {[%clk 0:00:08.2]} 46. Qf2 {[%clk 0:00:01.8]} 46... Nh3+ {[%clk 0:00:08.1]}
0-1

[Event "Early-Titled-Tuesday-Blitz-April-16-2024"]
[Site "Chess.com"]
[Date "2024.04.16"]
[Round "10"]
[White "flawian2008"]
[Black "Root_21"]
[Result "0-1"]
[WhiteElo "2550"]
[BlackElo "2644"]
[TimeControl "180+1"]
[EndTime "10:00:11 PDT"]
[Termination "Root_21 won by resignation"]

1. d4 {[%clk 0:03:00.9]} 1... Nf6 {[%clk 0:02:59.2]} 2. c4 {[%clk 0:03:01.3]}
2... e6 {[%clk 0:02:59.4]} 3. Nf3 {[%clk 0:03:01.6]} 3... d5 {[%clk 0:02:59.6]}
4. g3 {[%clk 0:03:01.9]} 4... dxc4 {[%clk 0:02:59.7]} 5. Qa4+ {[%clk 0:02:58.4]}
5... Nbd7 {[%clk 0:02:53.8]} 6. Qxc4 {[%clk 0:02:58.6]} 6... a6 {[%clk
0:02:54.4]} 7. Qc2 {[%clk 0:02:58]} 7... b5 {[%clk 0:02:53.9]} 8. Bg2 {[%clk
0:02:58.3]} 8... Bb7 {[%clk 0:02:54.3]} 9. O-O {[%clk 0:02:58]} 9... Bd6 {[%clk
0:02:46.4]} 10. Nbd2 {[%clk 0:02:57.6]} 10... O-O {[%clk 0:02:45.5]} 11. e4
{[%clk 0:02:57.9]} 11... e5 {[%clk 0:02:40.5]} 12. d5 {[%clk 0:02:55.7]} 12...
c6 {[%clk 0:02:31]} 13. dxc6 {[%clk 0:02:46.5]} 13... Qc7 {[%clk 0:02:21.2]} 14.
Nb3 {[%clk 0:02:43.4]} 14... Bxc6 {[%clk 0:02:17.5]} 15. Rd1 {[%clk 0:02:02.6]}
15... Bxe4 {[%clk 0:02:10]} 16. Qxc7 {[%clk 0:02:01.5]} 16... Bxc7 {[%clk
0:02:10.9]} 17. Bg5 {[%clk 0:01:54.9]} 17... Rfe8 {[%clk 0:01:59.6]} 18. Rac1
{[%clk 0:01:51.6]} 18... Bb6 {[%clk 0:01:59.6]} 19. Bxf6 {[%clk 0:01:39.8]}
19... Nxf6 {[%clk 0:01:59.6]} 20. Nc5 {[%clk 0:01:37.9]} 20... Bc6 {[%clk
0:01:50.1]} 21. Rd6 {[%clk 0:01:23.6]} 21... Bxc5 {[%clk 0:00:48.9]} 22. Rxc6
{[%clk 0:01:14]} 22... Ba7 {[%clk 0:00:45.8]} 23. Ng5 {[%clk 0:00:59]} 23... Ng4
{[%clk 0:00:29.7]} 24. Bd5 {[%clk 0:00:49.2]} 24... Bxf2+ {[%clk 0:00:26.9]} 25.
Kh1 {[%clk 0:00:46.7]} 25... Rf8 {[%clk 0:00:13.1]} 26. Rc7 {[%clk 0:00:47.1]}
26... Be3 {[%clk 0:00:12]} 27. Bxa8 {[%clk 0:00:36.5]} 27... Bxc1 {[%clk
0:00:09.5]} 28. Nxf7 {[%clk 0:00:35.3]} 28... Rxa8 {[%clk 0:00:06.2]} 29. Nd6
{[%clk 0:00:29.7]} 29... Bg5 {[%clk 0:00:04.9]} 30. Ne4 {[%clk 0:00:28.1]} 30...
Bf6 {[%clk 0:00:05.1]} 31. h3 {[%clk 0:00:26]} 31... Ne3 {[%clk 0:00:05.6]} 32.
Nc5 {[%clk 0:00:24]} 32... Rd8 {[%clk 0:00:04.7]} 33. Kg1 {[%clk 0:00:21.6]}
33... Rd1+ {[%clk 0:00:04.6]} 34. Kf2 {[%clk 0:00:22.2]} 34... Nc4 {[%clk
0:00:04.3]} 35. b3 {[%clk 0:00:22]} 35... Nd6 {[%clk 0:00:03.7]} 36. Nxa6 {[%clk
0:00:20.9]} 36... Rd2+ {[%clk 0:00:04.2]} 37. Ke3 {[%clk 0:00:20.6]} 37... Rxa2
{[%clk 0:00:05.1]} 38. Rd7 {[%clk 0:00:20.8]} 38... Nf5+ {[%clk 0:00:05.5]} 39.
Ke4 {[%clk 0:00:21]} 39... Rxa6 {[%clk 0:00:06.4]} 40. Kxf5 {[%clk 0:00:21.5]}
40... Ra3 {[%clk 0:00:06.8]} 41. Rd3 {[%clk 0:00:20.3]} 41... b4 {[%clk
0:00:06.5]} 42. g4 {[%clk 0:00:20.1]} 42... e4 {[%clk 0:00:05.3]} 43. Kxe4
{[%clk 0:00:20]} 43... Bc3 {[%clk 0:00:06.2]} 44. Rd8+ {[%clk 0:00:18]} 44...
Kf7 {[%clk 0:00:06.1]} 45. Rd7+ {[%clk 0:00:18.9]} 45... Ke6 {[%clk 0:00:06.5]}
46. Rb7 {[%clk 0:00:17.9]} 46... Rxb3 {[%clk 0:00:06.8]} 47. h4 {[%clk
0:00:18.8]} 47... Rb1 {[%clk 0:00:07.1]} 48. h5 {[%clk 0:00:18.8]} 48... Rg1
{[%clk 0:00:07.4]} 49. Kf3 {[%clk 0:00:17.5]} 49... Kd5 {[%clk 0:00:07.8]} 50.
h6 {[%clk 0:00:16.8]} 50... gxh6 {[%clk 0:00:06.7]} 51. Rxh7 {[%clk 0:00:17.7]}
51... b3 {[%clk 0:00:07]} 0-1

[Event "Early-Titled-Tuesday-Blitz-April-16-2024"]
[Site "Chess.com"]
[Date "2024.04.16"]
[Round "10"]
[White "dosto07"]
[Black "Maftuna2303"]
[Result "1-0"]
[WhiteElo "2514"]
[BlackElo "2374"]
[TimeControl "180+1"]
[EndTime "10:00:11 PDT"]
[Termination "dosto07 won on time"]

1. e4 {[%clk 0:03:00.9]} 1... e5 {[%clk 0:02:59.1]} 2. Nf3 {[%clk 0:03:01]} 2...
Nc6 {[%clk 0:02:59.2]} 3. Bb5 {[%clk 0:03:01.5]} 3... Nf6 {[%clk 0:02:57.9]} 4.
O-O {[%clk 0:03:00.9]} 4... Nxe4 {[%clk 0:02:57.1]} 5. Re1 {[%clk 0:03:00.1]}
5... Nd6 {[%clk 0:02:57]} 6. Nxe5 {[%clk 0:03:00.7]} 6... Nxe5 {[%clk
0:02:56.9]} 7. Rxe5+ {[%clk 0:03:00.4]} 7... Be7 {[%clk 0:02:57.2]} 8. Bf1
{[%clk 0:03:00]} 8... O-O {[%clk 0:02:57.4]} 9. Nc3 {[%clk 0:03:00.3]} 9... Bf6
{[%clk 0:02:57]} 10. Re1 {[%clk 0:03:00.9]} 10... Re8 {[%clk 0:02:57]} 11. Nd5
{[%clk 0:02:50.3]} 11... Rxe1 {[%clk 0:02:50.1]} 12. Qxe1 {[%clk 0:02:50.7]}
12... Ne8 {[%clk 0:02:49]} 13. c3 {[%clk 0:02:46.4]} 13... c6 {[%clk 0:02:48.3]}
14. Nxf6+ {[%clk 0:02:46.5]} 14... Nxf6 {[%clk 0:02:48.5]} 15. d4 {[%clk
0:02:41.6]} 15... d5 {[%clk 0:02:48.4]} 16. Bg5 {[%clk 0:02:41.2]} 16... Bf5
{[%clk 0:02:46.5]} 17. Qe5 {[%clk 0:02:40.2]} 17... Be6 {[%clk 0:02:40.4]} 18.
Bd3 {[%clk 0:02:35.4]} 18... Nd7 {[%clk 0:02:25.3]} 19. Qg3 {[%clk 0:02:32.9]}
19... f6 {[%clk 0:02:18.7]} 20. Re1 {[%clk 0:02:25.5]} 20... Nf8 {[%clk
0:02:17.1]} 21. Bh6 {[%clk 0:02:18.8]} 21... Qd7 {[%clk 0:02:13.9]} 22. h4
{[%clk 0:02:01.3]} 22... Qf7 {[%clk 0:02:11.6]} 23. Bf4 {[%clk 0:01:58.3]} 23...
Re8 {[%clk 0:02:10.3]} 24. Re3 {[%clk 0:01:55.9]} 24... Bd7 {[%clk 0:02:08.9]}
25. Bd6 {[%clk 0:01:54.2]} 25... Rxe3 {[%clk 0:01:58.2]} 26. Qxe3 {[%clk
0:01:54.2]} 26... Qe6 {[%clk 0:01:58.2]} 27. Qxe6+ {[%clk 0:01:53.5]} 27... Nxe6
{[%clk 0:01:56.7]} 28. g3 {[%clk 0:01:51.9]} 28... a6 {[%clk 0:01:56]} 29. Kf1
{[%clk 0:01:49.9]} 29... g6 {[%clk 0:01:55.3]} 30. Ke2 {[%clk 0:01:47.9]} 30...
Kf7 {[%clk 0:01:54.8]} 31. Ke3 {[%clk 0:01:46.5]} 31... Ng7 {[%clk 0:01:55]} 32.
Kd2 {[%clk 0:01:43.2]} 32... Bf5 {[%clk 0:01:55.1]} 33. Be2 {[%clk 0:01:42.1]}
33... Bb1 {[%clk 0:01:52.8]} 34. a3 {[%clk 0:01:41.5]} 34... Ke6 {[%clk
0:01:51.1]} 35. Bc5 {[%clk 0:01:41.5]} 35... Ne8 {[%clk 0:01:39.3]} 36. g4
{[%clk 0:01:37.1]} 36... Nd6 {[%clk 0:01:33]} 37. f3 {[%clk 0:01:32.8]} 37...
Nc8 {[%clk 0:01:22]} 38. a4 {[%clk 0:01:29.5]} 38... g5 {[%clk 0:01:11.7]} 39.
h5 {[%clk 0:01:23.6]} 39... f5 {[%clk 0:01:06.2]} 40. Kc1 {[%clk 0:01:16.7]}
40... Ba2 {[%clk 0:00:58.6]} 41. Bd3 {[%clk 0:01:12]} 41... Nd6 {[%clk
0:00:42.5]} 42. Bxd6 {[%clk 0:01:10.1]} 42... Kxd6 {[%clk 0:00:42.6]} 43. Bxf5
{[%clk 0:01:10.1]} 43... h6 {[%clk 0:00:42.8]} 44. a5 {[%clk 0:01:04.8]} 44...
Bc4 {[%clk 0:00:42.5]} 45. Kd2 {[%clk 0:01:00.9]} 45... c5 {[%clk 0:00:29.8]}
46. dxc5+ {[%clk 0:00:54.4]} 46... Kxc5 {[%clk 0:00:29.5]} 47. b4+ {[%clk
0:00:54.9]} 47... Kd6 {[%clk 0:00:26]} 48. Ke3 {[%clk 0:00:53]} 48... Bb3 {[%clk
0:00:24.5]} 49. f4 {[%clk 0:00:46.9]} 49... gxf4+ {[%clk 0:00:19.8]} 50. Kxf4
{[%clk 0:00:47.4]} 50... Ke7 {[%clk 0:00:18.4]} 51. Ke5 {[%clk 0:00:46.4]} 51...
Bc4 {[%clk 0:00:16.9]} 52. Bc8 {[%clk 0:00:46]} 52... d4 {[%clk 0:00:06.1]} 53.
Kxd4 {[%clk 0:00:44.2]} 53... Be2 {[%clk 0:00:05.3]} 54. Kc5 {[%clk 0:00:41.9]}
54... Kd8 {[%clk 0:00:04.9]} 55. Bf5 {[%clk 0:00:41.8]} 55... Kc7 {[%clk
0:00:04.8]} 56. c4 {[%clk 0:00:38.3]} 56... Bd1 {[%clk 0:00:04.6]} 57. b5 {[%clk
0:00:37.9]} 57... axb5 {[%clk 0:00:03.8]} 58. cxb5 {[%clk 0:00:38.5]} 58... Be2
{[%clk 0:00:04.3]} 59. b6+ {[%clk 0:00:38.6]} 59... Kb8 {[%clk 0:00:03.1]} 60.
Kd6 {[%clk 0:00:37.7]} 1-0